bitfinex/quotes_BTCUSD_20251021
["timestamp","ask_amount","ask_price","bid_price","bid_amount"]
[1761008824490,3.70738591,110460.0,110450.0,0.0008316]
[1761008825266,3.70896379,110460.0,110450.0,0.0008316]
[1761008825762,0.70896379,110460.0,110450.0,0.0008316]
[1761008826261,0.52790278,110460.0,110450.0,0.18190901]
[1761008826513,0.70896379,110460.0,110450.0,0.21822925]
[1761008827523,0.70738591,110460.0,110450.0,0.21822925]
[1761008828036,0.47198422,110460.0,110450.0,0.21922925]
[1761008828276,0.53884523,110460.0,110450.0,0.0018316]
[1761008830244,0.54042306,110460.0,110450.0,0.0018316]
[1761008832759,0.59476374,110460.0,110450.0,0.0018316]
[1761008833209,3.59476374,110460.0,110450.0,0.0018316]
[1761008836628,3.2548724,110460.0,110450.0,0.0018316]
[1761008838923,3.38087369,110460.0,110450.0,0.0018316]
[1761008839252,3.72087369,110460.0,110450.0,0.0018316]
[1761008840171,3.72087369,110460.0,110450.0,0.0008316]
[1761008842522,0.1810938,110440.0,110430.0,0.0002316]
[1761008842699,0.1810938,110440.0,110430.0,0.0002807]
[1761008843139,0.28388888,110440.0,110430.0,0.00096538]
[1761008843345,3.62546692,110440.0,110430.0,0.00945236]
[1761008843597,3.64937539,110440.0,110430.0,0.00096538]
[1761008843791,3.57625427,110440.0,110430.0,0.00196538]
[1761008845362,0.39516047,110440.0,110430.0,0.00196538]
[1761008845583,0.57625427,110440.0,110430.0,0.00196538]
[1761008847737,0.39516047,110440.0,110430.0,0.18307558]
[1761008848177,0.57625427,110440.0,110430.0,0.00196538]
[1761008848393,0.640386,110440.0,110430.0,0.00196538]
[1761008848835,3.640386,110440.0,110430.0,0.00196538]
[1761008852969,3.640386,110440.0,110430.0,0.00696538]
[1761008853381,3.70047675,110440.0,110430.0,0.00696538]
[1761008853563,3.67656828,110440.0,110430.0,0.00696538]
[1761008854738,0.21729248,110430.0,110420.0,0.15280344]
[1761008854994,3.46464647,110430.0,110420.0,0.15280344]
[1761008855615,3.46622475,110430.0,110420.0,0.15280344]
[1761008855819,3.38886816,110430.0,110420.0,0.15280344]
[1761008860342,3.38886816,110430.0,110420.0,0.15314583]
[1761008860556,3.20775796,110430.0,110420.0,0.15314583]
[1761008860758,3.38886816,110430.0,110420.0,0.15314583]
[1761008860977,3.47868717,110430.0,110420.0,0.15314583]
[1761008861542,3.27458816,110430.0,110420.0,0.15314583]
[1761008861751,3.38886816,110430.0,110420.0,0.10914583]
[1761008864239,3.17157568,110430.0,110420.0,0.10914583]
[1761008864460,0.57840588,110430.0,110420.0,0.10914583]
[1761008864672,0.51157568,110430.0,110420.0,0.10914583]
[1761008865108,0.51157568,110430.0,110420.0,0.29027243]
[1761008865326,0.51157568,110430.0,110420.0,0.10914583]
[1761008865532,0.51157568,110430.0,110420.0,0.29027243]
[1761008865918,0.69268588,110430.0,110420.0,0.10914583]
[1761008866344,3.7814843,110430.0,110420.0,0.10914583]
[1761008868023,0.7814843,110430.0,110420.0,0.10914583]
[1761008868834,0.7814843,110430.0,110420.0,0.06714583]
[1761008869217,0.69268588,110430.0,110420.0,0.06714583]
[1761008875882,0.69268588,110430.0,110420.0,0.03914583]
[1761008883043,0.69268588,110430.0,110420.0,0.01814583]
[1761008883645,3.69268588,110430.0,110420.0,0.01814583]
[1761008883853,3.75278507,110430.0,110420.0,0.01814583]
[1761008884063,3.84260408,110430.0,110420.0,0.01814583]
[1761008885878,3.8410258,110430.0,110420.0,0.01814583]
[1761008889363,3.85102579,110430.0,110420.0,0.01814583]
[1761008889589,3.8782721,110430.0,110420.0,0.01814583]
[1761008889988,0.18114301,110410.0,110400.0,0.29784781]
[1761008890190,0.36988804,110410.0,110400.0,0.29784781]
[1761008890389,0.37146644,110410.0,110400.0,0.29784781]
[1761008895735,0.37146644,110410.0,110400.0,0.29853276]
[1761008897393,3.39538335,110410.0,110400.0,0.29853276]
[1761008900045,3.39638335,110410.0,110400.0,0.29853276]
[1761008901358,3.43256563,110410.0,110400.0,0.29853276]
[1761008901624,3.77256563,110410.0,110400.0,0.29853276]
[1761008903743,3.74864872,110410.0,110400.0,0.29853276]
[1761008905088,3.69435214,110410.0,110400.0,0.29853276]
[1761008905560,3.69435214,110410.0,110400.0,0.47969218]
[1761008905762,3.69435214,110410.0,110400.0,0.29853276]
[1761008906272,3.69335214,110410.0,110400.0,0.29853276]
[1761008910100,0.51220913,110410.0,110400.0,0.47969218]
[1761008910320,0.3415784,110410.0,110400.0,0.47969218]
[1761008910527,0.52272141,110410.0,110400.0,0.47969218]
[1761008910740,0.3415784,110410.0,110400.0,0.47969218]
[1761008911185,0.0015784,110410.0,110400.0,0.47969218]
[1761008911419,0.3415784,110410.0,110400.0,0.47969218]
[1761008911634,0.34,110410.0,110400.0,0.47969218]
[1761008911845,0.11416,110420.0,110410.0,0.18114301]
[1761008912100,0.35147224,110420.0,110410.0,0.18114301]
[1761008912290,0.17034564,110420.0,110410.0,0.11414301]
[1761008912497,0.35147224,110420.0,110400.0,0.47900723]
[1761008912730,0.18114301,110410.0,110400.0,0.29784781]
[1761008912940,0.18114301,110410.0,110400.0,0.47900723]
[1761008913195,0.18114301,110410.0,110400.0,0.29784781]
[1761008913398,0.35247224,110420.0,110400.0,0.47900723]
[1761008913598,0.18114301,110410.0,110400.0,0.47900723]
[1761008913970,0.35147224,110420.0,110400.0,0.47900723]
[1761008915610,0.35305055,110420.0,110400.0,0.47900723]
[1761008916889,0.35405055,110420.0,110400.0,0.47900723]
[1761008917303,0.35405055,110420.0,110410.0,0.00034245]
[1761008918672,0.35405055,110420.0,110410.0,0.18148546]
[1761008918836,0.23989055,110420.0,110410.0,0.18148546]
[1761008919201,0.23889055,110420.0,110410.0,0.13748546]
[1761008919404,0.23989055,110420.0,110410.0,0.13748546]
[1761008919605,0.05876395,110420.0,110410.0,0.13748546]
[1761008919742,0.23989055,110420.0,110410.0,0.13748546]
[1761008920812,0.05876395,110420.0,110410.0,0.13748546]
[1761008921343,0.34257831,110420.0,110410.0,0.26971976]
[1761008921648,0.34257831,110420.0,110410.0,0.25160546]
[1761008922052,0.341,110420.0,110410.0,0.25160546]
[1761008922261,0.34,110420.0,110410.0,0.25160546]
[1761008922579,0.00014691,110430.0,110420.0,0.1811266]
[1761008928867,0.00014691,110430.0,110420.0,0.1821266]
[1761008934692,0.00014691,110430.0,110420.0,0.20936093]
[1761008936556,0.00014691,110430.0,110420.0,0.29917994]
[1761008938373,0.00014691,110430.0,110420.0,0.29817994]
[1761008938758,0.00014691,110430.0,110420.0,0.29917994]
[1761008940851,0.20728337,110460.0,110440.0,0.1810938]
[1761008941057,3.0,110450.0,110440.0,0.2951338]
[1761008942327,3.0,110450.0,110440.0,0.2961338]
[1761008942931,0.02622089,110460.0,110450.0,0.18107741]
[1761008945141,0.02464293,110460.0,110450.0,0.18107741]
[1761008947783,0.02464293,110460.0,110450.0,0.2083047]
[1761008948944,0.02464293,110460.0,110450.0,0.2093047]
[1761008949150,0.02464293,110460.0,110450.0,0.2083047]
[1761008949275,0.02464293,110460.0,110450.0,0.2093047]
[1761008949678,0.00675005,110460.0,110450.0,0.2093047]
[1761008953768,0.005,110480.0,110470.0,0.18104462]
[1761008953937,0.00513366,110480.0,110470.0,0.42292671]
[1761008954351,0.00513366,110480.0,110470.0,0.30888671]
[1761008954531,0.00513366,110480.0,110470.0,0.42818037]
[1761008955612,0.00513366,110480.0,110470.0,0.43018037]
[1761008955955,0.00513366,110480.0,110470.0,0.42818037]
[1761008956176,0.00513366,110480.0,110470.0,0.42918037]
[1761008956565,0.00513366,110480.0,110470.0,0.42818037]
[1761008958019,0.00513366,110480.0,110470.0,0.42918037]
[1761008962742,0.00513366,110480.0,110470.0,0.42914037]
[1761008963303,0.00513366,110480.0,110470.0,0.31502037]
[1761008963481,0.00513366,110480.0,110470.0,0.42914037]
[1761008964087,0.00513366,110480.0,110470.0,0.42814037]
[1761008964499,0.00513366,110480.0,110470.0,0.42914037]
[1761008965761,0.00513366,110480.0,110470.0,0.42910037]
[1761008966970,0.00513366,110480.0,110470.0,0.31502037]
[1761008967170,0.00513366,110480.0,110470.0,0.42910037]
[1761008975638,0.00720245,110500.0,110490.0,0.40583748]
[1761008976814,0.00720245,110500.0,110490.0,0.39863503]
[1761008978194,0.00720245,110500.0,110490.0,0.19477602]
[1761008978448,0.00720245,110500.0,110490.0,0.30877602]
[1761008979923,0.00720245,110500.0,110490.0,0.001]
[1761008980131,0.00720245,110500.0,110490.0,0.115]
[1761008980375,0.00720245,110500.0,110490.0,0.31411303]
[1761008980551,0.00720245,110500.0,110490.0,0.29601185]
[1761008982616,0.00720245,110500.0,110490.0,0.38583086]
[1761008996967,0.00720245,110500.0,110490.0,0.18201185]
[1761008997167,0.00720245,110500.0,110490.0,0.29597185]
[1761008998621,0.06106675,110510.0,110500.0,0.18099547]
[1761008998777,0.08521988,110510.0,110500.0,0.18099547]
[1761008999719,0.02415313,110510.0,110500.0,0.18099547]
[1761009000364,0.20513222,110510.0,110500.0,0.18099547]
[1761009001037,0.02415313,110510.0,110500.0,0.18099547]
[1761009004298,0.02449513,110510.0,110500.0,0.18099547]
[1761009006058,0.18096364,110520.0,110510.0,0.18097909]
[1761009008111,0.23284669,110520.0,110500.0,0.18099547]
[1761009008265,0.23284669,110520.0,110500.0,0.29495547]
[1761009008266,0.18097909,110510.0,110500.0,0.29495547]
[1761009008992,0.20478502,110510.0,110500.0,0.29495547]
[1761009010968,0.02380593,110510.0,110500.0,0.29495547]
[1761009011171,0.69585482,110520.0,110510.0,0.18097909]
[1761009011791,0.71982996,110520.0,110510.0,0.18097909]
[1761009013251,0.52981819,110520.0,110510.0,0.18097909]
[1761009013472,0.36397514,110520.0,110510.0,0.18097909]
[1761009013692,0.02397514,110520.0,110510.0,0.18097909]
[1761009013978,0.66472607,110530.0,110520.0,0.18096272]
[1761009014300,3.71619978,110530.0,110520.0,0.18096272]
[1761009016338,3.74067331,110530.0,110510.0,0.18097909]
[1761009016499,3.74067331,110530.0,110520.0,0.18096272]
[1761009016664,0.4367179,110530.0,110520.0,0.18096272]
[1761009016859,0.37105081,110530.0,110520.0,0.13896272]
[1761009017065,0.04022414,110530.0,110520.0,0.27101899]
[1761009017299,0.03173464,110530.0,110520.0,0.25292272]
[1761009017541,0.03015736,110530.0,110520.0,0.25292272]
[1761009019308,0.03015736,110530.0,110520.0,0.25392272]
[1761009023974,0.03015736,110530.0,110520.0,0.22092272]
[1761009027119,0.2111037,110530.0,110520.0,0.18196272]
[1761009027409,0.5511037,110530.0,110520.0,0.29592272]
[1761009028392,0.5511037,110530.0,110520.0,0.29492272]
[1761009030996,0.5511037,110530.0,110520.0,0.22792272]
[1761009031197,0.55957708,110530.0,110520.0,0.22792272]
[1761009032219,0.5511037,110530.0,110520.0,0.22792272]
[1761009032570,0.55957736,110530.0,110520.0,0.22792272]
[1761009033640,0.55957736,110530.0,110520.0,0.2688129]
[1761009034986,0.55957736,110530.0,110520.0,0.22792272]
[1761009036260,0.55957736,110530.0,110520.0,0.29492272]
[1761009038105,0.37863102,110530.0,110520.0,0.25192272]
[1761009038503,0.37015736,110530.0,110520.0,0.25192272]
[1761009039416,0.37863513,110530.0,110520.0,0.25192272]
[1761009041946,0.37863513,110530.0,110520.0,0.25292272]
[1761009043690,0.03863513,110530.0,110520.0,0.25292272]
[1761009043989,0.03015736,110530.0,110520.0,0.25292272]
[1761009045224,0.03015736,110530.0,110520.0,0.22092272]
[1761009052400,0.03015736,110530.0,110520.0,0.18392272]
[1761009052616,0.03015736,110530.0,110520.0,0.06996272]
[1761009052839,0.03015736,110530.0,110520.0,0.18392272]
[1761009053243,0.03015736,110530.0,110520.0,0.06996272]
[1761009053626,0.03015736,110530.0,110520.0,0.18392272]
[1761009054110,0.03015736,110530.0,110520.0,0.2204129]
[1761009055553,0.21959007,110530.0,110520.0,0.18196272]
[1761009057015,0.55959007,110530.0,110520.0,0.001]
[1761009057344,0.60257741,110530.0,110520.0,0.001]
[1761009057493,3.60257741,110530.0,110520.0,0.001]
[1761009057696,3.60415457,110530.0,110520.0,0.001]
[1761009057897,3.69397358,110530.0,110520.0,0.001]
[1761009058096,3.69239642,110530.0,110520.0,0.001]
[1761009058928,0.52096272,110520.0,110510.0,0.18097848]
[1761009059138,0.18097909,110510.0,110500.0,0.30400524]
[1761009059954,0.52130466,110520.0,110500.0,0.30400524]
[1761009060167,0.52130466,110520.0,110510.0,0.18097909]
[1761009061147,0.34034194,110520.0,110510.0,0.18097909]
[1761009061341,0.63526466,110520.0,110510.0,0.18097909]
[1761009062054,0.63526466,110520.0,110500.0,0.30600524]
[1761009062253,0.29526466,110520.0,110500.0,0.30600524]
[1761009062522,0.29526466,110520.0,110500.0,0.30500524]
[1761009062724,0.29526466,110520.0,110500.0,0.30400524]
[1761009063141,0.29526466,110520.0,110510.0,0.001]
[1761009063344,0.18130466,110520.0,110500.0,0.30400524]
[1761009063647,0.18130466,110520.0,110500.0,0.30500524]
[1761009063896,3.38320913,110510.0,110500.0,0.001]
[1761009064105,0.18102824,110480.0,110470.0,0.18279389]
[1761009064312,0.11396,110480.0,110470.0,0.20139015]
[1761009064538,0.11396,110480.0,110470.0,0.22153016]
[1761009064750,0.29498824,110480.0,110470.0,0.22153016]
[1761009065130,0.11396,110480.0,110470.0,0.22153016]
[1761009065537,0.34157751,110500.0,110490.0,0.18101185]
[1761009065738,0.34,110490.0,110480.0,0.18101347]
[1761009065894,0.34,110490.0,110480.0,0.19355625]
[1761009066286,0.52101185,110490.0,110480.0,0.19355625]
[1761009067127,0.34923495,110500.0,110480.0,0.19355625]
[1761009067306,0.36185329,110500.0,110480.0,0.19355625]
[1761009068698,0.34765744,110500.0,110480.0,0.19355625]
[1761009069316,0.68765744,110500.0,110480.0,0.19355625]
[1761009070301,0.68923489,110500.0,110480.0,0.19355625]
[1761009070731,0.68923489,110500.0,110490.0,0.18101185]
[1761009070930,0.68923489,110500.0,110490.0,0.18207672]
[1761009071334,0.68923489,110500.0,110490.0,0.00106487]
[1761009073389,0.70343058,110500.0,110490.0,0.00106487]
[1761009073866,0.68923489,110500.0,110490.0,0.00106487]
[1761009074901,0.39427942,110500.0,110490.0,0.18207672]
[1761009075171,0.39427942,110500.0,110490.0,0.21964002]
[1761009075172,0.00157745,110500.0,110490.0,0.21964002]
[1761009075426,0.29493973,110510.0,110500.0,0.18099547]
[1761009075687,0.29493973,110510.0,110490.0,0.21964002]
[1761009075688,0.34,110500.0,110490.0,0.21964002]
[1761009093718,0.52099547,110500.0,110490.0,0.21964002]
[1761009094030,0.52099547,110500.0,110490.0,0.18207672]
[1761009094245,0.34,110500.0,110490.0,0.18207672]
[1761009095029,0.52099547,110500.0,110490.0,0.00106487]
[1761009095239,3.57369744,110500.0,110490.0,0.00106487]
[1761009097813,3.57469744,110500.0,110490.0,0.00106487]
[1761009098204,3.57369744,110500.0,110490.0,0.00106487]
[1761009098417,3.58889381,110500.0,110490.0,0.00106487]
[1761009098634,3.58989381,110500.0,110490.0,0.00106487]
[1761009098841,3.68129028,110500.0,110490.0,0.00106487]
[1761009099045,3.59147127,110500.0,110490.0,0.00106487]
[1761009099439,3.5772749,110500.0,110490.0,0.00106487]
[1761009102339,3.59147111,110500.0,110490.0,0.00106487]
[1761009108412,3.59120111,110500.0,110490.0,0.00106487]
[1761009109040,3.59120111,110500.0,110490.0,0.18207672]
[1761009109649,3.59020111,110500.0,110490.0,0.18207672]
[1761009109881,3.58920111,110500.0,110490.0,0.18207672]
[1761009110279,3.59020111,110500.0,110490.0,0.00106487]
[1761009127833,3.6488003,110500.0,110490.0,0.00106487]
[1761009128058,3.6588298,110500.0,110490.0,0.00106487]
[1761009128260,3.68605818,110500.0,110490.0,0.00106487]
[1761009128462,3.68448072,110500.0,110490.0,0.00106487]
[1761009128604,3.68348072,110500.0,110490.0,0.00106487]
[1761009128948,3.68448072,110500.0,110490.0,0.00106487]
[1761009129140,3.77529973,110500.0,110490.0,0.00106487]
[1761009129491,3.77329973,110500.0,110490.0,0.00106487]
[1761009129826,3.77529973,110500.0,110490.0,0.00106487]
[1761009131275,3.7894977,110500.0,110490.0,0.00106487]
[1761009131701,3.79107535,110500.0,110490.0,0.00106487]
[1761009134709,3.74443273,110500.0,110490.0,0.00106487]
[1761009134886,0.34,110470.0,110460.0,0.19010924]
[1761009135089,0.34,110470.0,110460.0,0.24632838]
[1761009135307,0.34,110470.0,110460.0,0.22822228]
[1761009135519,0.52104462,110470.0,110460.0,0.22822228]
[1761009137894,0.34,110470.0,110460.0,0.22822228]
[1761009138552,0.52104462,110470.0,110460.0,0.22822228]
[1761009139810,0.55767289,110470.0,110460.0,0.22822228]
[1761009140405,0.55767289,110470.0,110460.0,0.19122482]
[1761009141507,0.55767289,110470.0,110460.0,0.18217177]
[1761009143410,0.21767289,110470.0,110460.0,0.18217177]
[1761009144515,0.21767289,110470.0,110460.0,0.00111558]
[1761009144881,0.21767289,110470.0,110460.0,0.18217659]
[1761009145115,0.21767289,110470.0,110460.0,0.21940733]
[1761009147337,0.21767289,110470.0,110460.0,0.00111558]
[1761009147700,0.27160378,110470.0,110460.0,0.00111558]
[1761009149069,3.29402069,110470.0,110460.0,0.00111558]
[1761009149474,3.63402069,110470.0,110460.0,0.00111558]
[1761009149690,3.45297607,110470.0,110460.0,0.00111558]
[1761009149919,3.63402069,110470.0,110460.0,0.00111558]
[1761009150324,3.61160378,110470.0,110460.0,0.00111558]
[1761009150724,3.61018378,110470.0,110460.0,0.00111558]
[1761009152710,3.64794382,110470.0,110460.0,0.00111558]
[1761009154745,3.61176154,110470.0,110460.0,0.00111558]
[1761009156157,3.61176154,110470.0,110410.0,0.18114301]
[1761009156158,0.00905469,110440.0,110410.0,0.18114301]
[1761009156459,0.1811266,110420.0,110410.0,0.18127667]
[1761009159039,0.57670026,110430.0,110420.0,0.1811266]
[1761009159918,0.57670026,110430.0,110410.0,0.18127667]
[1761009162710,0.57670026,110430.0,110420.0,0.1811266]
[1761009163234,0.57670026,110430.0,110420.0,0.182496]
[1761009165802,3.57670026,110430.0,110420.0,0.0013694]
[1761009166205,3.603941,110430.0,110420.0,0.0013694]
[1761009166408,3.69376001,110430.0,110420.0,0.0013694]
[1761009167044,3.73094229,110430.0,110420.0,0.0013694]
[1761009167655,3.73094229,110430.0,110410.0,0.00013366]
[1761009167656,0.18114301,110410.0,110400.0,0.27435087]
[1761009167859,0.35157374,110410.0,110400.0,0.27449778]
[1761009173139,0.35157374,110410.0,110400.0,0.27518273]
[1761009177408,0.17043073,110410.0,110400.0,0.45634215]
[1761009177609,0.52270501,110420.0,110410.0,0.18114301]
[1761009177610,0.00157841,110420.0,110410.0,0.18114301]
[1761009177922,0.29515286,110430.0,110410.0,0.18114301]
[1761009178150,0.1811266,110420.0,110410.0,0.18114301]
[1761009178490,0.5211266,110420.0,110410.0,0.18114301]
[1761009178644,0.34,110420.0,110410.0,0.18114301]
[1761009181702,0.18114301,110410.0,110400.0,0.4556572]
[1761009181842,0.5771221,110420.0,110410.0,0.18114301]
[1761009182053,0.5771221,110420.0,110400.0,0.5696572]
[1761009182523,0.18114301,110410.0,110400.0,0.5696572]
[1761009182798,0.18114301,110410.0,110400.0,0.4556572]
[1761009183163,0.18114301,110410.0,110400.0,0.4566572]
[1761009183373,3.80354253,110410.0,110400.0,0.27618273]
[1761009183576,3.80354253,110410.0,110400.0,0.27518273]
[1761009183776,3.832369,110410.0,110400.0,0.27518273]
[1761009183976,3.80512104,110410.0,110400.0,0.27518273]
[1761009184399,3.72929453,110410.0,110400.0,0.27518273]
[1761009184827,3.72929453,110410.0,110400.0,0.22618273]
[1761009186665,3.72771602,110410.0,110400.0,0.22618273]
[1761009187472,3.57753374,110410.0,110400.0,0.22618273]
[1761009187688,3.69177374,110410.0,110400.0,0.22618273]
[1761009187868,3.78317123,110410.0,110400.0,0.22618273]
[1761009191958,3.69335222,110410.0,110400.0,0.15918273]
[1761009198837,3.69335222,110410.0,110400.0,0.11118273]
[1761009205406,3.7295345,110410.0,110400.0,0.11118273]
[1761009205941,3.7295345,110410.0,110400.0,0.05118273]
[1761009206159,3.75304801,110410.0,110400.0,0.05118273]
[1761009209415,3.77546492,110410.0,110400.0,0.05118273]
[1761009211279,3.75304801,110410.0,110400.0,0.05118273]
[1761009211485,3.77546492,110410.0,110400.0,0.05118273]
[1761009212044,3.80271286,110410.0,110400.0,0.05118273]
[1761009213150,3.80213438,110410.0,110400.0,0.02718273]
[1761009213352,3.77971747,110410.0,110400.0,0.02718273]
[1761009213663,3.77871747,110410.0,110400.0,0.02718273]
[1761009213865,3.78071747,110410.0,110400.0,0.02718273]
[1761009214238,3.79071746,110410.0,110400.0,0.02718273]
[1761009215696,3.79229614,110410.0,110400.0,0.02718273]
[1761009217667,3.79071746,110410.0,110400.0,0.02718273]
[1761009220087,3.79071746,110410.0,110400.0,0.02418273]
[1761009220286,3.79229612,110410.0,110400.0,0.02418273]
[1761009222784,3.78229613,110410.0,110400.0,0.02418273]
[1761009226453,3.8047114,110410.0,110400.0,0.02418273]
[1761009228880,3.9001414,110410.0,110400.0,0.02418273]
[1761009229400,3.8047114,110410.0,110400.0,0.02418273]
[1761009230592,3.78229613,110410.0,110400.0,0.02418273]
[1761009232416,3.78229613,110410.0,110400.0,0.01218273]
[1761009233809,3.8047114,110410.0,110400.0,0.01218273]
[1761009238147,3.21735811,110390.0,110380.0,0.0052]
[1761009238366,3.81850839,110390.0,110380.0,0.0052]
[1761009239032,3.84733958,110390.0,110380.0,0.0052]
[1761009239479,3.75752057,110390.0,110380.0,0.0052]
[1761009240558,3.75756966,110390.0,110380.0,0.0052]
[1761009241442,3.75599096,110390.0,110380.0,0.0052]
[1761009243216,3.78237293,110390.0,110380.0,0.0052]
[1761009243598,3.78395163,110390.0,110380.0,0.00588514]
[1761009243913,3.87377064,110390.0,110380.0,0.00588514]
[1761009245498,3.65641253,110390.0,110380.0,0.00588514]
[1761009245734,3.83758836,110390.0,110380.0,0.00588514]
[1761009249483,0.18119224,110380.0,110370.0,0.32399431]
[1761009249620,0.2388139,110380.0,110370.0,0.32399431]
[1761009249825,0.32863291,110380.0,110370.0,0.32399431]
[1761009252234,0.35104818,110380.0,110370.0,0.32399431]
[1761009254299,3.69104818,110380.0,110370.0,0.32399431]
[1761009254825,3.71830231,110380.0,110370.0,0.32399431]
[1761009255042,3.71830231,110380.0,110370.0,0.32433694]
[1761009256415,3.75448459,110380.0,110370.0,0.32433694]
[1761009256991,3.75448459,110380.0,110370.0,0.27333694]
[1761009260126,3.75548459,110380.0,110370.0,0.27333694]
[1761009260732,3.75448459,110380.0,110370.0,0.27333694]
[1761009261201,3.75548459,110380.0,110370.0,0.27333694]
[1761009262052,3.75648459,110380.0,110370.0,0.27333694]
[1761009263204,3.72214803,110380.0,110370.0,0.27333694]
[1761009264063,3.72214803,110380.0,110370.0,0.22133694]
[1761009266352,3.73635975,110380.0,110370.0,0.22133694]
[1761009271082,3.73635975,110380.0,110370.0,0.18533694]
[1761009273837,3.6948939,110380.0,110370.0,0.18533694]
[1761009274843,3.78371291,110380.0,110370.0,0.18533694]
[1761009275229,3.78271291,110380.0,110370.0,0.18533694]
[1761009278045,3.80996449,110380.0,110370.0,0.18533694]
[1761009278285,3.80996449,110380.0,110370.0,0.13133694]
[1761009280241,3.72014548,110380.0,110370.0,0.13133694]
[1761009285348,3.72014548,110380.0,110370.0,0.08033694]
[1761009286903,3.53895324,110380.0,110370.0,0.08033694]
[1761009287107,3.72014548,110380.0,110370.0,0.08033694]
[1761009290045,3.74256074,110380.0,110370.0,0.08033694]
[1761009290273,3.83237975,110380.0,110370.0,0.08033694]
[1761009291139,3.83337975,110380.0,110370.0,0.08033694]
[1761009292316,3.83337975,110380.0,110370.0,0.05733694]
[1761009299366,3.83337975,110380.0,110370.0,0.02133694]
[1761009301607,3.74356074,110380.0,110370.0,0.02133694]
[1761009301819,3.72114548,110380.0,110370.0,0.02133694]
[1761009306486,0.52122508,110360.0,110350.0,0.52308658]
[1761009306690,0.69374772,110360.0,110350.0,0.52308658]
[1761009307285,0.69532683,110360.0,110350.0,0.52308658]
[1761009307420,0.69532683,110360.0,110350.0,0.52377199]
[1761009308574,0.51410175,110360.0,110350.0,0.52377199]
[1761009310397,0.69532683,110360.0,110350.0,0.52377199]
[1761009311454,0.51410175,110360.0,110350.0,0.52377199]
[1761009311865,0.40002175,110360.0,110350.0,0.52377199]
[1761009313565,0.34157911,110360.0,110350.0,0.52377199]
[1761009315832,0.34157911,110360.0,110350.0,0.63785199]
[1761009317979,0.34157911,110360.0,110350.0,0.52377199]
[1761009319786,0.00157911,110360.0,110350.0,0.52477199]
[1761009319989,3.11408,110380.0,110370.0,0.18119251]
[1761009320212,0.51328066,110380.0,110370.0,0.18119251]
[1761009320515,0.34,110380.0,110370.0,0.18119251]
[1761009320709,0.45408,110380.0,110370.0,0.18119251]
[1761009321067,0.34,110380.0,110370.0,0.18119251]
[1761009323472,0.52119224,110380.0,110370.0,0.11319251]
[1761009323684,0.34,110370.0,110360.0,0.33158621]
[1761009325176,0.18122508,110360.0,110350.0,0.51402499]
[1761009325321,0.18122508,110360.0,110350.0,0.33278349]
[1761009325522,0.18122508,110360.0,110350.0,0.3600366]
[1761009325709,0.57966772,110360.0,110350.0,0.33278349]
[1761009326061,0.57966772,110360.0,110350.0,0.3334689]
[1761009326769,0.60208298,110360.0,110350.0,0.3334689]
[1761009328722,0.60208298,110360.0,110350.0,0.34196468]
[1761009329128,0.60208298,110360.0,110350.0,0.3334689]
[1761009329646,0.57966772,110360.0,110350.0,0.3334689]
[1761009335760,0.57966772,110360.0,110350.0,0.2934689]
[1761009339428,0.66732128,110360.0,110350.0,0.2934689]
[1761009340624,0.57966772,110360.0,110350.0,0.2934689]
[1761009342979,0.57966772,110360.0,110350.0,0.2644689]
[1761009348506,0.57966772,110360.0,110350.0,0.4457104]
[1761009348872,0.39844264,110360.0,110350.0,0.4457104]
[1761009349077,0.34,110360.0,110350.0,0.4457104]
[1761009349484,0.34,110360.0,110350.0,0.5597904]
[1761009349684,0.29687076,110370.0,110360.0,0.18122508]
[1761009349897,0.35490288,110370.0,110360.0,0.18122508]
[1761009350709,0.17369132,110370.0,110360.0,0.18122508]
[1761009350973,0.35489998,110370.0,110360.0,0.18122508]
[1761009351138,0.0015792,110370.0,110360.0,0.18122508]
[1761009351855,0.3415792,110370.0,110360.0,0.18122508]
[1761009352265,0.34,110370.0,110360.0,0.18122508]
[1761009353244,0.52120866,110370.0,110360.0,0.18122508]
[1761009354080,0.34,110370.0,110360.0,0.18122508]
[1761009355162,0.34,110370.0,110360.0,0.18156776]
[1761009358566,0.52120866,110370.0,110360.0,0.18156776]
[1761009359756,0.57924078,110370.0,110360.0,0.00034268]
[1761009359963,0.57924078,110370.0,110360.0,0.01846518]
[1761009360321,0.57924078,110370.0,110360.0,0.00034268]
[1761009362557,3.57924078,110370.0,110360.0,0.00034268]
[1761009363155,3.57924078,110370.0,110360.0,0.01846518]
[1761009363560,0.57924078,110370.0,110360.0,0.01846518]
[1761009365491,0.57924078,110370.0,110360.0,0.19969026]
[1761009365689,0.57924078,110370.0,110360.0,0.00034268]
[1761009365851,0.57924078,110370.0,110360.0,0.1969375]
[1761009366090,0.69328078,110370.0,110360.0,0.1969375]
[1761009366666,0.52120866,110370.0,110360.0,0.1969375]
[1761009366859,0.52120866,110370.0,110360.0,0.18156776]
[1761009367478,0.34,110370.0,110360.0,0.18156776]
[1761009367682,3.18120866,110370.0,110360.0,0.18156743]
[1761009367885,0.18120866,110370.0,110360.0,0.18156743]
[1761009368486,0.00157906,110380.0,110370.0,0.18120866]
[1761009368664,0.2968113,110380.0,110370.0,0.18120866]
[1761009369053,0.29523224,110380.0,110370.0,0.18120866]
[1761009369872,0.63523224,110380.0,110370.0,0.16320866]
[1761009370076,0.63523224,110380.0,110370.0,0.18132952]
[1761009371501,0.45404,110380.0,110370.0,0.18132952]
[1761009371706,0.34,110380.0,110370.0,0.18132952]
[1761009372232,0.52119224,110380.0,110370.0,0.18132952]
[1761009372441,0.34,110380.0,110370.0,0.18132952]
[1761009372998,0.52119224,110380.0,110370.0,0.18132952]
[1761009373643,0.34,110380.0,110370.0,0.18132952]
[1761009377701,0.03020614,110390.0,110380.0,0.18119224]
[1761009377898,0.02862717,110390.0,110380.0,0.29523224]
[1761009379146,0.02862717,110390.0,110380.0,0.29623224]
[1761009380524,0.00111539,110390.0,110380.0,0.38605125]
[1761009382244,0.00269414,110390.0,110380.0,0.38605125]
[1761009382505,0.00269414,110390.0,110380.0,0.41329268]
[1761009383937,0.02038568,110400.0,110390.0,0.18117583]
[1761009384368,0.00157872,110410.0,110400.0,0.18115942]
[1761009384574,0.00157872,110410.0,110400.0,0.21739295]
[1761009385290,0.18272173,110410.0,110400.0,0.21739295]
[1761009386054,0.54335099,110410.0,110400.0,0.03623353]
[1761009386511,0.54335099,110410.0,110400.0,0.21739295]
[1761009387036,0.18115942,110400.0,110380.0,0.21749328]
[1761009387239,0.18115942,110400.0,110380.0,0.30429185]
[1761009387438,0.18115942,110400.0,110390.0,0.18117583]
[1761009387639,0.18115942,110400.0,110380.0,0.30429185]
[1761009387840,0.18119224,110380.0,110360.0,0.18121926]
[1761009388047,0.18120866,110370.0,110360.0,0.18171354]
[1761009388291,0.29523224,110380.0,110360.0,0.29575354]
[1761009388444,0.63523224,110380.0,110370.0,0.18120866]
[1761009388687,0.45404,110380.0,110370.0,0.18120866]
[1761009389195,0.63523224,110380.0,110370.0,0.18120866]
[1761009389560,0.63523224,110380.0,110370.0,0.18227506]